fUSD/lending_fUSD_20250413
["ID","MTS","AMOUNT","RATE_DAILY","PERIOD"]
[357902812,1744546241350,-5669.5330556,0.00019986,2]
[357902813,1744546241361,-1550.0593174,0.00019986,2]
[357902814,1744546241371,-20923.1922317,0.00019986,2]
[357902815,1744546241382,-2843.3581371,0.00019986,2]
[357902816,1744546241396,-15487.8633667,0.00019986,2]
[357902817,1744546241407,-3092.5961918,0.00019986,2]
[357902818,1744546241419,-36934.1063436,0.00019986,2]
[357902819,1744546241430,-1015.8232186,0.00019986,2]
[357902820,1744546241442,-824.0,0.0002,2]
[357902821,1744546241453,-103642.84754508,0.0002,2]
[357902823,1744546241465,-233386.73155983,0.0002,2]
[357902824,1744546241480,-400.15737426,0.0002,2]
[357902825,1744546241532,-487.52557497,0.0002,2]
[357902826,1744546241555,-2112.65862626,0.0002,2]
[357902827,1744546241568,-538.49795999,0.0002,2]
[357902858,1744546244181,-150.0,0.00019926,2]
[357902859,1744546244193,-108.55435841,0.0002,2]
[357902860,1744546244208,-1241.44564159,0.0002,2]
[357902862,1744546245626,-410699.99999995,0.0002,2]
[357902864,1744546246588,-150.0,0.00019653,2]
[357902865,1744546246599,-254.754461,0.00019826,2]
[357902866,1744546246608,-1000.0,0.00019897,2]
[357902867,1744546246618,-42736.90370199,0.0002,2]
[357902868,1744546246629,-1687.0116,0.0002,2]
[357902869,1744546246641,-42124.2337259,0.0002,2]
[357902870,1744546246658,-740.0,0.0002,2]
[357902871,1744546246668,-46077.24946722,0.0002,2]
[357902873,1744546470544,1093.1,0.00013699,2]
[357902874,1744546471117,1093.1,0.00013699,2]
[357902875,1744546471303,1093.1,0.00013699,2]
[357902876,1744546472380,1093.1,0.00013699,2]
[357902877,1744546472425,295.0,0.00013699,2]
[357902878,1744546472450,798.1,0.00013699,2]
[357902879,1744546472623,1093.1,0.00013699,2]
[357902880,1744546472802,1093.1,0.00013699,2]
[357902881,1744546473326,1093.1,0.00013699,2]
[357902882,1744546473635,1093.1,0.00013699,2]
[357902883,1744546474005,1093.1,0.00013699,2]
[357902884,1744546474305,1093.1,0.00013699,2]
[357902885,1744546474605,1093.1,0.00013699,2]
[357902886,1744546475356,1093.1,0.00013699,2]
[357902889,1744546475731,218.02,0.00013699,2]
[357902890,1744546475756,875.08,0.00013699,2]
[357902891,1744546476065,1093.1,0.00013699,2]
[357902892,1744546476418,1093.1,0.00013699,2]
[357902893,1744546477013,1093.1,0.00013699,2]
[357902894,1744546477606,1093.1,0.00013699,2]
[357902895,1744546477929,1093.1,0.00013699,2]
[357902896,1744546478224,1093.12569782,0.00013699,2]
[357902910,1744546884354,200.0,0.00031,120]
[357902912,1744546962404,152.0,0.000305,60]
[357902918,1744547115207,150.0,0.00018714,7]
[357902919,1744547128761,2112.57220619,0.00011,2]
[357902920,1744547130898,152.0,0.000181,2]
[357902921,1744547156231,801.98879225,6.94e-05,2]
[357902923,1744547167709,1085.43900156,8e-05,2]
[357902925,1744547172837,804.86,0.00016727,2]
[357902930,1744547315125,1045.81227433,0.000149,2]
[357902959,1744547431509,-295.0,0.0001843,2]
[357902960,1744547431519,-224.42229295,0.00018523,2]
[357902961,1744547431528,-151.55,0.00018541,2]
[357902962,1744547431537,-151.55,0.00018551,2]
[357902963,1744547431547,-151.55,0.00018561,2]
[357902964,1744547431556,-151.55,0.00018572,2]
[357902965,1744547431565,-151.55,0.00018582,2]
[357902966,1744547431575,-151.55,0.00018592,2]
[357902967,1744547431584,-1.09862546,0.00018603,2]
[357902968,1744547431595,-150.45137454,0.00018603,2]
[357902969,1744547431605,-224.42229294,0.00018603,2]
[357902970,1744547431614,-151.55,0.00018613,2]
[357902971,1744547431623,-151.55,0.00018623,2]
[357902972,1744547431634,-151.55,0.00018634,2]
[357902973,1744547431643,-250.0,0.00018697,2]
[357902974,1744547431653,-200.0,0.00018703,2]
[357902975,1744547431663,-300.0,0.00018745,2]
[357902976,1744547431673,-8247.66,0.00018746,2]
[357902977,1744547431683,-152.52,0.00018851,2]
[357902978,1744547431693,-200.0,0.00018851,2]
[357902979,1744547431702,-250.0,0.00018933,2]
[357902980,1744547431711,-804.86,0.00018991,2]
[357902981,1744547431724,-994.67,0.00019,2]
[357902983,1744547431735,-994.67,0.00019,2]
[357902985,1744547431744,-994.67,0.00019,2]
[357902987,1744547431753,-994.67,0.00019,2]
[357902989,1744547431763,-994.67,0.00019,2]
[357902991,1744547431772,-186.77330226,0.00019,2]
[357902993,1744547431781,-241.68641893,0.00019002,2]
[357902995,1744547431793,-1000.0,0.00019053,2]
[357902996,1744547431804,-166.66,0.00019103,2]
[357902998,1744547431814,-712.0,0.00019177,2]
[357903000,1744547431823,-1978.24,0.00019178,2]
[357903002,1744547431832,-525.77,0.00019178,2]
[357903004,1744547431842,-670.32,0.00019178,2]
[357903006,1744547431851,-500.0,0.00019178,2]
[357903008,1744547431860,-4586.7,0.00019178,2]
[357903010,1744547431869,-566.96,0.00019178,2]
[357903012,1744547431878,-500.0,0.00019178,2]
[357903014,1744547431888,-500.0,0.00019178,2]
[357903016,1744547431900,-617.0,0.00019178,2]
[357903018,1744547431909,-369.7493493,0.00019399,2]
[357903020,1744547431919,-1978.24,0.00019452,2]
[357903022,1744547431928,-525.77,0.00019452,2]
[357903024,1744547431937,-670.32,0.00019452,2]
[357903026,1744547431946,-500.0,0.00019452,2]
[357903028,1744547431955,-4586.7,0.00019452,2]
[357903030,1744547431964,-566.96,0.00019452,2]
[357903032,1744547431973,-500.0,0.00019452,2]
[357903033,1744547431982,-500.0,0.00019452,2]
[357903035,1744547431992,-617.0,0.00019452,2]
[357903037,1744547432001,-203.0406,0.00019584,2]
[357903039,1744547432010,-2360.5771,0.00019584,2]
[357903041,1744547432019,-1661.0542,0.00019609,2]
[357903043,1744547432030,-19326.5322993,0.0001961,2]
[357903045,1744547432038,-1837.03798038,0.00019621,2]
[357903047,1744547432047,-24448.72583839,0.00019622,2]
[357903559,1744547437427,-440.24148182,0.00019622,2]
[357903574,1744547437539,-7434.8593271,0.00019622,2]
[357903576,1744547437551,-837.3995428,0.00019622,2]
[357903597,1744547437759,-2942.77900989,0.00019622,2]
[357903599,1744547437770,-1000.0,0.00019622,2]
[357903601,1744547437779,-410.23117542,0.00019624,2]
[357903603,1744547437788,-114.24851868,0.00019626,2]
[357903605,1744547437801,-385.75148132,0.00019626,2]
[357903607,1744547437810,-3971.14852823,0.00019642,2]
[357903609,1744547437822,-318.21903199,0.00019642,2]
[357903611,1744547437833,-382.53535663,0.00019642,2]
[357903613,1744547437844,-11422.48158018,0.00019642,2]
[357903616,1744547437855,-3232.14780224,0.00019642,2]
[357903617,1744547437865,-160.98846147,0.00019673,2]
[357903619,1744547437875,-467.22023629,0.00019673,2]
[357903670,1744547439519,-33.7764551,0.00019673,2]
[357903672,1744547439528,-500.0,0.00019673,2]
[357903674,1744547439537,-269.89,0.00019674,2]
[357903676,1744547439547,-269.89,0.00019674,2]
[357903678,1744547439555,-10357.03716339,0.00019674,2]
[357903681,1744547439575,-8969.49513588,0.00019674,2]
[357903683,1744547439584,-164.26111006,0.00019675,2]
[357903685,1744547439593,-23453.3048473,0.00019684,2]
[357903690,1744547439633,-1710.19466749,0.00019684,2]
[357903697,1744547439692,-64247.47298521,0.00019684,2]
[357903699,1744547439701,-269.89,0.00019697,2]
[357903701,1744547439710,-6247.73247942,0.000197,2]
[357903702,1744547439720,-19326.53229927,0.00019707,2]
[357903704,1744547439732,-1354.73062488,0.0001971,2]
[357903706,1744547439742,-435.7175,0.0001971,2]
[357903708,1744547439751,-1007.24139424,0.00019714,2]
[357903710,1744547439760,-269.89,0.00019716,2]
[357903712,1744547439771,-411.37299284,0.00019725,2]
[357903714,1744547439780,-1978.24,0.00019726,2]
[357903716,1744547439790,-525.77,0.00019726,2]
[357903718,1744547439800,-670.32,0.00019726,2]
[357903720,1744547439810,-507.34991247,0.00019726,2]
[357903722,1744547439820,-4586.7,0.00019726,2]
[357903724,1744547439830,-566.96,0.00019726,2]
[357903726,1744547439840,-500.0,0.00019726,2]
[357903728,1744547439849,-500.0,0.00019726,2]
[357903730,1744547439859,-617.0,0.00019726,2]
[357903732,1744547439871,-150.0,0.00019727,2]
[357903734,1744547439882,-269.89,0.00019729,2]
[357903736,1744547439893,-1354.73062488,0.00019731,2]
[357903738,1744547439902,-150.0,0.00019733,2]
[357903741,1744547439912,-150.0,0.00019738,2]
[357903742,1744547439922,-19326.53229927,0.00019739,2]
[357903744,1744547439931,-150.0,0.00019741,2]
[357903746,1744547439940,-150.0,0.00019741,2]
[357903748,1744547439950,-150.0,0.00019741,2]
[357903750,1744547439959,-150.0,0.00019742,2]
[357903752,1744547439968,-150.0,0.00019743,2]
[357903754,1744547439978,-150.0,0.00019746,2]
[357903756,1744547439987,-150.0,0.00019746,2]
[357903758,1744547439996,-150.0,0.00019747,2]
[357903760,1744547440005,-150.0,0.00019751,2]
[357903762,1744547440015,-150.0,0.00019751,2]
[357903764,1744547440024,-150.0,0.00019752,2]
[357903766,1744547440033,-1354.73062488,0.00019752,2]
[357903768,1744547440043,-150.0,0.00019758,2]
[357903770,1744547440052,-150.0,0.0001976,2]
[357903772,1744547440062,-269.89,0.00019761,2]
[357903774,1744547440072,-150.0,0.00019766,2]
[357903776,1744547440081,-150.0,0.00019766,2]
[357903778,1744547440091,-150.0,0.00019768,2]
[357903780,1744547440100,-19326.53229927,0.00019771,2]
[357903782,1744547440110,-1354.73062488,0.00019773,2]
[357903783,1744547440119,-150.0,0.00019775,2]
[357903784,1744547440128,-150.0,0.00019776,2]
[357903785,1744547440138,-150.0,0.00019779,2]
[357903786,1744547440146,-150.0,0.0001978,2]
[357903787,1744547440156,-913.45405601,0.00019781,2]
[357903788,1744547440166,-150.0,0.00019782,2]
[357903789,1744547440175,-150.0,0.00019783,2]
[357903790,1744547440184,-150.0,0.00019785,2]
[357903791,1744547440193,-150.0,0.00019785,2]
[357903792,1744547440202,-150.0,0.00019786,2]
[357903793,1744547440212,-150.0,0.00019786,2]
[357903794,1744547440222,-150.0,0.00019787,2]
[357903795,1744547440231,-150.0,0.00019788,2]
[357903796,1744547440240,-150.0,0.00019789,2]
[357903798,1744547440250,-150.0,0.00019791,2]
[357903800,1744547440259,-269.89,0.00019793,2]
[357903801,1744547440269,-150.0,0.00019794,2]
[357903802,1744547440278,-1354.73062488,0.00019794,2]
[357903803,1744547440287,-150.0,0.00019797,2]
[357903804,1744547440297,-150.0,0.00019798,2]
[357903805,1744547440307,-150.0,0.000198,2]
[357903806,1744547440315,-269.89,0.000198,2]
[357903807,1744547440325,-269.89,0.000198,2]
[357903808,1744547440334,-269.89,0.000198,2]
[357903809,1744547440344,-150.0,0.00019801,2]
[357903810,1744547440353,-150.0,0.00019802,2]
[357903811,1744547440363,-19326.53229927,0.00019803,2]
[357903812,1744547440373,-150.0,0.00019804,2]
[357903813,1744547440383,-150.0,0.00019807,2]
[357903814,1744547440392,-150.0,0.00019808,2]
[357903815,1744547440401,-213.1939552,0.00019809,2]
[357903816,1744547440411,-224.88654865,0.00019809,2]
[357903817,1744547440420,-150.0,0.00019809,2]
[357903818,1744547440430,-89235.87604793,0.0001981,2]
[357903819,1744547440439,-150.0,0.0001981,2]
[357903820,1744547440449,-150.0,0.00019814,2]
[357903821,1744547440458,-1354.73062488,0.00019816,2]
[357903822,1744547440468,-150.0,0.00019821,2]
[357903823,1744547440478,-150.0,0.00019822,2]
[357903824,1744547440488,-150.0,0.00019824,2]
[357903825,1744547440497,-150.0,0.00019824,2]
[357903826,1744547440507,-150.0,0.00019826,2]
[357903827,1744547440516,-150.0,0.00019827,2]
[357903828,1744547440526,-19326.53229927,0.00019836,2]
[357903829,1744547440535,-1354.73062488,0.00019837,2]
[357903830,1744547440544,-200.0,0.0001984,2]
[357903831,1744547440553,-150.0,0.00019841,2]
[357903832,1744547440563,-150.0,0.00019844,2]
[357903833,1744547440742,-150.0,0.00019848,2]
[357903835,1744547440752,-150.0,0.0001985,2]
[357903837,1744547440762,-150.0,0.00019851,2]
[357903838,1744547440772,-150.0,0.00019852,2]
[357903839,1744547440781,-150.0,0.00019854,2]
[357903840,1744547440791,-1354.73062488,0.00019858,2]
[357903841,1744547440801,-150.0,0.00019863,2]
[357903842,1744547440810,-19326.53229927,0.00019868,2]
[357903843,1744547440820,-150.0,0.00019869,2]
[357903844,1744547440829,-500.0,0.00019873,2]
[357903845,1744547440839,-500.0,0.00019873,2]
[357903846,1744547440848,-150.0,0.00019873,2]
[357903847,1744547440857,-150.0,0.00019873,2]
[357903848,1744547440866,-150.0,0.00019876,2]
[357903849,1744547440876,-1354.73062488,0.00019879,2]
[357903850,1744547440886,-150.0,0.00019879,2]
[357903851,1744547440896,-150.0,0.0001988,2]
[357903852,1744547440906,-434.75377164,0.00019882,2]
[357903853,1744547440915,-7309.4475,0.00019886,2]
[357903854,1744547440924,-437.3953,0.00019886,2]
[357903855,1744547440933,-150.0,0.00019887,2]
[357903856,1744547440943,-2483.158,0.00019891,2]
[357903857,1744547440952,-173.248,0.00019891,2]
[357903858,1744547440962,-150.0,0.00019897,2]
[357903859,1744547440983,-150.0,0.00019897,2]
[357903860,1744547441005,-150.0,0.00019897,2]
[357903861,1744547441017,-163.37199918,0.000199,2]
[357903862,1744547441028,-177.84596547,0.000199,2]
[357903863,1744547441038,-19326.53229927,0.000199,2]
[357903864,1744547441048,-206.69733318,0.000199,2]
[357903865,1744547441060,-150.0,0.00019903,2]
[357903866,1744547441070,-150.0,0.00019904,2]
[357903867,1744547441080,-806.0,0.00019907,2]
[357903868,1744547441090,-150.0,0.00019907,2]
[357903869,1744547441099,-150.0,0.00019907,2]
[357903870,1744547441108,-150.0,0.00019908,2]
[357903871,1744547441118,-150.0,0.00019913,2]
[357903872,1744547441127,-150.0,0.00019914,2]
[357903873,1744547441137,-150.0,0.00019916,2]
[357903874,1744547441146,-150.0,0.00019917,2]
[357903875,1744547441156,-150.0,0.00019923,2]
[357903876,1744547441165,-150.0,0.00019925,2]
[357903877,1744547441175,-150.0,0.00019927,2]
[357903878,1744547441184,-150.0,0.0001993,2]
[357903879,1744547441193,-150.0,0.00019932,2]
[357903880,1744547441203,-150.0,0.00019944,2]
[357903881,1744547441212,-150.0,0.00019947,2]
[357903882,1744547441222,-150.0,0.0001995,2]
[357903883,1744547441232,-150.0,0.00019958,2]
[357903884,1744547441241,-150.0,0.00019959,2]
[357903885,1744547441251,-150.0,0.0001996,2]
[357903886,1744547441260,-150.0,0.00019962,2]
[357903887,1744547441271,-150.0,0.00019964,2]
[357903888,1744547441280,-150.0,0.00019967,2]
[357903889,1744547441289,-6496.0,0.00019973,2]
[357903890,1744547441299,-165.41229476,0.00019973,2]
[357903891,1744547441308,-500.0,0.00019973,2]
[357903892,1744547441317,-500.0,0.00019973,2]
[357903893,1744547441327,-500.0,0.00019973,2]
[357903894,1744547441336,-500.0,0.00019973,2]
[357903895,1744547441345,-500.0,0.00019973,2]
[357903896,1744547441355,-505.88978665,0.00019973,2]
[357903897,1744547441374,-500.61611358,0.00019973,2]
[357903898,1744547441384,-506.71275121,0.00019973,2]
[357903899,1744547441395,-500.0,0.00019973,2]
[357903900,1744547441404,-150.0,0.00019973,2]
[357903901,1744547441413,-150.0,0.00019974,2]
[357903902,1744547441423,-150.0,0.00019975,2]
[357903903,1744547441434,-150.0,0.00019979,2]
[357903904,1744547441444,-150.0,0.0001998,2]
[357903905,1744547441453,-150.0,0.00019982,2]
[357903906,1744547441463,-150.0,0.00019982,2]
[357903907,1744547441473,-150.0,0.00019982,2]
[357903908,1744547441483,-9200.7017696,0.00019986,2]
[357903909,1744547441492,-731.3989994,0.00019986,2]
[357903910,1744547441502,-994.3320377,0.00019986,2]
[357903911,1744547441511,-74342.6821595,0.00019986,2]
[357903912,1744547441520,-480.0965116,0.00019986,2]
[357903913,1744547441530,-1813.9150401,0.00019986,2]
[357903914,1744547441540,-62850.75277434,0.0001999,2]
[357903915,1744547441550,-150.0,0.00019991,2]
[357903916,1744547441560,-150.0,0.00019995,2]
[357903917,1744547441570,-150.0,0.00019995,2]
[357903918,1744547441580,-240.25936934,0.00019999,4]
[357903919,1744547441590,-153642.84754508,0.0002,2]
[357903920,1744547441599,-211914.90849085,0.0002,2]
[357903921,1744547441805,-1203.2499875,0.0002,2]
[357903922,1744547441817,-411.36404276,0.0002,2]
[357903923,1744547441828,-2484.85562084,0.0002,2]
[357903924,1744547441840,-482.56,0.0002,2]
[357903925,1744547441851,-510.1169997,0.0002,2]
[357904043,1744547444281,-321.28096,0.000199,2]
[357904045,1744547444292,-727.15696938,0.000199,2]
[357904167,1744547445365,-306.2926955,0.000199,2]
[357904169,1744547445374,-248.26405609,0.000199,2]
[357904171,1744547445383,-1539.0,0.000199,2]
[357904173,1744547445392,-1969.70595766,0.000199,2]
[357904175,1744547445401,-4361.73729075,0.0002,2]
[357904178,1744547445422,-57530.50470539,0.0002,2]
[357904198,1744547445535,-19172.39706962,0.0002,2]
[357904200,1744547445546,-5102.20894791,0.0002,2]
[357904203,1744547445559,-1075.54067003,0.0002,2]
[357904221,1744547445647,-3570.5339792,0.0002,2]
[357916330,1744547636531,500.0,0.000181,2]
[357916339,1744548222296,724.37,0.0001689,2]
[357916341,1744548327215,2740.0,0.00031,120]
[357916344,1744548631575,-450.0,0.0001864,2]
[357916345,1744548631588,-692.363655,0.0001864,2]
[357916346,1744548631597,-1542.72615753,0.0001864,2]
[357916347,1744548631638,-2304.79917091,0.0001864,2]
[357916363,1744548632182,218.02,0.00013699,2]
[357916370,1744548637901,-353649.65467156,0.0001864,2]
[357916371,1744548637910,-4363.47,0.00018686,2]
[357916372,1744548637919,-250.0,0.00018687,2]
[357916373,1744548637929,-185.2134485,0.00018734,2]
[357916374,1744548637938,-250.0,0.00018824,2]
[357916375,1744548637947,-23900.0,0.00018835,2]
[357916376,1744548637956,-181.82,0.00018888,2]
[357916377,1744548637965,-250.0,0.00019,2]
[357916378,1744548637974,-254.6321747,0.00019017,2]
[357916379,1744548637986,-745.3678253,0.00019017,2]
[357916380,1744548637995,-724.37,0.00019154,2]
[357916381,1744548638004,-300.0,0.00019177,2]
[357916382,1744548638013,-500.0,0.00019178,2]
[357916383,1744548638022,-586.53,0.00019178,2]
[357916384,1744548638031,-539.88,0.00019178,2]
[357916385,1744548638041,-1730.96,0.00019178,2]
[357916386,1744548638050,-500.0,0.00019178,2]
[357916389,1744548638223,-4204.47,0.00019178,2]
[357916390,1744548638233,-519.71,0.00019178,2]
[357916391,1744548638243,-500.0,0.00019178,2]
[357916392,1744548638252,-250.0,0.00019189,2]
[357916393,1744548638261,-213.1939552,0.00019338,2]
[357916394,1744548638271,-224.88654865,0.00019338,2]
[357916395,1744548638280,-13235.63357792,0.00019339,2]
[357916396,1744548640064,-10368.60642208,0.00019339,2]
[357916397,1744548640074,-4843.2,0.00019339,2]
[357916398,1744548640083,-3779.48,0.00019339,2]
[357916399,1744548640092,-2759.16,0.00019339,2]
[357916400,1744548640102,-277.312012,0.00019399,2]
[357916401,1744548640116,-500.0,0.00019452,2]
[357916402,1744548640125,-586.53,0.00019452,2]
[357916403,1744548640134,-539.88,0.00019452,2]
[357916404,1744548640143,-1730.96,0.00019452,2]
[357916405,1744548640154,-500.0,0.00019452,2]
[357916406,1744548640163,-4204.47,0.00019452,2]
[357916407,1744548640174,-519.71,0.00019452,2]
[357916408,1744548640184,-500.0,0.00019452,2]
[357916409,1744548640194,-301.67337286,0.00019455,2]
[357916410,1744548640203,-18778.0192,0.00019626,2]
[357916411,1744548640212,-1000.0,0.0001971,2]
[357916412,1744548640222,-2500.0,0.0001971,2]
[357916413,1744548640231,-150.0,0.00019713,2]
[357916414,1744548640240,-150.0,0.00019715,2]
[357916415,1744548640249,-150.0,0.00019717,2]
[357916416,1744548640258,-150.0,0.00019724,2]
[357916417,1744548640268,-411.37299284,0.00019725,2]
[357916418,1744548640277,-150.0,0.00019726,2]
[357916419,1744548640286,-150.0,0.00019726,2]
[357916420,1744548640295,-500.0,0.00019726,2]
[357916421,1744548640304,-586.53,0.00019726,2]
[357916422,1744548640313,-539.88,0.00019726,2]
[357916423,1744548640322,-1730.96,0.00019726,2]
[357916424,1744548640331,-500.0,0.00019726,2]
[357916425,1744548640340,-4204.47,0.00019726,2]
[357916426,1744548640349,-519.71,0.00019726,2]
[357916427,1744548640358,-500.0,0.00019726,2]
[357916428,1744548640367,-150.0,0.00019734,2]
[357916429,1744548640377,-150.0,0.00019735,2]
[357916430,1744548640387,-150.0,0.00019739,2]
[357916431,1744548640396,-150.0,0.00019745,2]
[357916432,1744548640406,-150.0,0.00019746,2]
[357916433,1744548640415,-150.0,0.0001975,2]
[357916434,1744548640424,-150.0,0.00019757,2]
[357916435,1744548640433,-150.0,0.00019765,2]
[357916436,1744548640442,-150.0,0.00019765,2]
[357916437,1744548640451,-150.0,0.00019766,2]
[357916438,1744548640460,-150.0,0.00019766,2]
[357916439,1744548640470,-150.0,0.00019767,2]
[357916440,1744548640479,-150.0,0.00019767,2]
[357916441,1744548640488,-150.0,0.00019767,2]
[357916442,1744548640498,-150.0,0.00019769,2]
[357916443,1744548640507,-150.0,0.00019769,2]
[357916444,1744548640516,-150.0,0.00019772,2]
[357916445,1744548640525,-150.0,0.00019776,2]
[357916446,1744548640534,-150.0,0.00019779,2]
[357916447,1744548640543,-150.0,0.00019782,2]
[357916448,1744548640552,-150.0,0.00019783,2]
[357916449,1744548640561,-150.0,0.00019786,2]
[357916450,1744548640571,-150.0,0.00019795,2]
[357916451,1744548640580,-150.0,0.00019797,2]
[357916452,1744548640589,-215.92,0.000198,2]
[357916453,1744548640598,-150.0,0.00019802,2]
[357916454,1744548640607,-150.0,0.00019803,2]
[357916455,1744548640616,-150.0,0.00019804,2]
[357916456,1744548640625,-150.0,0.00019806,2]
[357916457,1744548640635,-89235.87604793,0.0001981,2]
[357916458,1744548640644,-150.0,0.00019812,2]
[357916459,1744548640653,-150.0,0.00019818,2]
[357916460,1744548640662,-150.0,0.00019819,2]
[357916461,1744548640671,-150.0,0.00019824,2]
[357916462,1744548640680,-150.0,0.00019826,2]
[357916463,1744548640690,-150.0,0.00019831,2]
[357916464,1744548640699,-150.0,0.00019832,2]
[357916465,1744548640708,-150.0,0.00019833,2]
[357916466,1744548640717,-150.0,0.00019834,2]
[357916467,1744548640727,-150.0,0.00019834,2]
[357916468,1744548640736,-150.0,0.00019837,2]
[357916469,1744548640745,-150.0,0.00019837,2]
[357916470,1744548640754,-200.0,0.0001984,2]
[357916471,1744548640763,-150.0,0.00019842,2]
[357916472,1744548640772,-150.0,0.00019843,2]
[357916473,1744548640782,-150.0,0.00019844,2]
[357916474,1744548640791,-150.0,0.00019844,2]
[357916475,1744548640800,-150.0,0.00019845,2]
[357916476,1744548640810,-150.0,0.00019849,2]
[357916477,1744548640819,-434.75377164,0.00019853,2]
[357916478,1744548640828,-150.0,0.00019858,2]
[357916479,1744548640837,-150.0,0.00019859,2]
[357916480,1744548640846,-150.0,0.0001986,2]
[357916481,1744548640855,-227.308,0.00019863,2]
[357916482,1744548640864,-358.829,0.00019863,2]
[357916483,1744548640873,-150.0,0.00019863,2]
[357916484,1744548640882,-212.513,0.00019863,2]
[357916485,1744548640892,-150.0,0.00019863,2]
[357916486,1744548640901,-150.0,0.00019864,2]
[357916487,1744548640910,-150.0,0.00019866,2]
[357916488,1744548640920,-150.0,0.00019866,2]
[357916489,1744548640929,-150.0,0.00019867,2]
[357916490,1744548640938,-150.0,0.00019867,2]
[357916491,1744548640947,-150.0,0.00019871,2]
[357916492,1744548640957,-150.0,0.00019875,2]
[357916493,1744548640966,-215.92,0.00019876,2]
[357916494,1744548640975,-150.0,0.00019878,2]
[357916495,1744548640984,-150.0,0.00019878,2]
[357916496,1744548640994,-215.92,0.00019879,2]
[357916497,1744548641003,-215.92,0.00019885,2]
[357916498,1744548641012,-173.248,0.00019886,2]
[357916499,1744548641021,-2483.158,0.00019886,2]
[357916500,1744548641031,-5797.95968979,0.00019886,2]
[357916501,1744548641039,-437.3953,0.00019886,2]
[357916502,1744548641048,-7309.4475,0.00019886,2]
[357916503,1744548641058,-5797.95968978,0.00019888,2]
[357916504,1744548641067,-5797.95968978,0.00019889,2]
[357916505,1744548641075,-215.92,0.0001989,2]
[357916506,1744548641084,-5797.95968978,0.00019891,2]
[357916507,1744548641093,-5797.95968978,0.00019892,2]
[357916508,1744548641103,-5797.95968978,0.00019894,2]
[357916509,1744548641114,-5797.95968978,0.00019895,2]
[357916510,1744548641123,-5797.95968978,0.00019897,2]
[357916511,1744548641132,-5797.95968978,0.00019898,2]
[357916512,1744548641141,-150.0,0.00019899,2]
[357916513,1744548641151,-177.84596547,0.000199,2]
[357916514,1744548641159,-5797.95968978,0.000199,2]
[357916515,1744548641169,-206.69733318,0.000199,2]
[357916516,1744548641178,-150.0,0.00019901,2]
[357916517,1744548641193,-150.0,0.00019902,2]
[357916518,1744548641204,-150.0,0.00019907,2]
[357916519,1744548641215,-1000.0,0.0001991,2]
[357916520,1744548641224,-150.0,0.00019913,2]
[357916521,1744548641234,-150.0,0.00019913,2]
[357916522,1744548641243,-150.0,0.00019914,2]
[357916523,1744548641252,-150.0,0.00019919,2]
[357916524,1744548641262,-150.0,0.00019922,2]
[357916525,1744548641271,-150.0,0.00019924,2]
[357916526,1744548641280,-150.0,0.00019929,2]
[357916527,1744548641290,-150.0,0.00019933,2]
[357916528,1744548641299,-150.0,0.0001994,2]
[357916529,1744548641309,-150.0,0.00019943,2]